bitfinex-derivatives/quotes_BNBF0:USTF0_20250101
["timestamp","ask_amount","ask_price","bid_price","bid_amount"]
[1735720905553,1.48422478,704.15,703.21,0.27055723]
[1735720905554,0.26170281,703.95,703.21,0.27055723]
[1735720905755,0.26170281,703.94,703.21,0.27055723]
[1735720906055,0.26170281,703.93,703.21,0.27055723]
[1735720906253,0.26170281,703.92,703.21,0.27055723]
[1735720906452,1.48422478,704.15,703.21,0.27055723]
[1735720906751,0.26170356,704.14,703.21,0.27055723]
[1735720908053,0.26170234,704.13,703.21,0.27055723]
[1735720908254,0.26170234,704.12,703.21,0.27055723]
[1735720908454,0.26170234,704.11,703.21,0.27055723]
[1735720908754,0.26170108,704.1,703.21,0.27055723]
[1735720910548,1.05985319,704.11,703.21,0.27055723]
[1735720910752,1.32155186,704.1,703.21,0.27055723]
[1735720910948,0.26169867,704.09,703.21,0.27055723]
[1735720911954,1.05985319,704.08,703.21,0.27055723]
[1735720912253,0.26169867,704.07,703.21,0.27055723]
[1735720912548,1.74599203,704.07,703.21,0.27055723]
[1735720912753,1.32155186,704.06,703.21,0.27055723]
[1735720912953,0.26169867,704.05,703.21,0.27055723]
[1735720913351,0.2616981,704.04,703.21,0.27055723]
[1735720913652,0.2616981,704.03,703.21,0.27055723]
[1735720913847,1.05985319,704.06,703.21,0.27055723]
[1735720914051,0.26166149,704.05,703.21,0.27055723]
[1735720915254,0.26166149,704.04,703.21,0.27055723]
[1735720915454,0.26166149,704.03,703.21,0.27055723]
[1735720915650,1.48429336,704.07,703.21,0.27055723]
[1735720915855,0.26166242,704.06,703.21,0.27055723]
[1735720916056,0.26166242,704.05,703.21,0.27055723]
[1735720916250,0.26166242,704.04,703.21,0.27055723]
[1735720916455,1.48429336,704.07,703.21,0.27055723]
[1735720916655,0.26166129,704.06,703.21,0.27055723]
[1735720918856,0.26166148,704.05,703.21,0.27055723]
[1735720919054,1.48429336,704.07,703.21,0.27055723]
[1735720919256,0.26166316,704.06,703.21,0.27055723]
[1735720920254,1.48429336,704.07,703.21,0.27055723]
[1735720920758,0.2616786,704.06,703.21,0.27055723]
[1735720920959,0.26167628,704.05,703.21,0.27055723]
[1735720921260,0.26167628,704.04,703.21,0.27055723]
[1735720921558,0.26167628,704.03,703.21,0.27055723]
[1735720921757,1.48429336,704.07,703.21,0.27055723]
[1735720921955,0.26167609,704.06,703.21,0.27055723]
[1735720923153,0.26167357,704.05,703.21,0.27055723]
[1735720923352,0.26167357,704.06,703.21,0.27055723]
[1735720923555,0.26167357,704.05,703.21,0.27055723]
[1735720923759,1.48429336,704.07,703.21,0.27055723]
[1735720923954,0.26167167,704.06,703.21,0.27055723]
[1735720924361,1.05985319,704.03,703.21,0.27055723]
[1735720924565,0.26167167,704.02,703.21,0.27055723]
[1735720925964,0.261669,704.01,703.21,0.27055723]
[1735720926159,0.261669,704.0,703.21,0.27055723]
[1735720926358,0.261669,703.99,703.21,0.27055723]
[1735720926560,0.261669,703.98,703.21,0.27055723]
[1735720926760,0.261669,703.97,703.21,0.27055723]
[1735720927062,0.261669,703.96,703.21,0.27055723]
[1735720927263,1.05985319,704.03,703.21,0.27055723]
[1735720927462,0.26167387,704.02,703.21,0.27055723]
[1735720928057,1.05985319,704.01,703.21,0.27055723]
[1735720928257,0.26167387,704.0,703.21,0.27055723]
[1735720929369,0.26167387,703.99,703.21,0.27055723]
[1735720929567,0.26167387,703.98,703.21,0.27055723]
[1735720929866,0.26167387,703.97,703.21,0.27055723]
[1735720930165,1.05985319,704.02,703.21,0.27055723]
[1735720930366,0.26167312,704.01,703.21,0.27055723]
[1735720931365,1.32152631,704.01,703.21,0.27055723]
[1735720931569,0.26167312,704.0,703.21,0.27055723]
[1735720931769,1.05985319,704.01,703.21,0.27055723]
[1735720931970,0.26167302,704.0,703.21,0.27055723]
[1735720932670,0.26167302,703.99,703.21,0.27055723]
[1735720932870,0.26167302,703.98,703.21,0.27055723]
[1735720933066,1.05985319,704.02,703.21,0.27055723]
[1735720933265,0.26167074,704.01,703.21,0.27055723]
[1735720933771,0.26167074,704.02,703.21,0.27055723]
[1735720933973,0.26167006,704.01,703.21,0.27055723]
[1735720934173,0.26167006,704.0,703.21,0.27055723]
[1735720934467,1.05985319,704.03,703.21,0.27055723]
[1735720934868,1.05985319,704.02,703.21,0.27055723]
[1735720935773,1.05985319,704.06,703.21,0.27055723]
[1735720936073,0.26167008,704.05,703.21,0.27055723]
[1735720936474,0.26166994,704.04,703.21,0.27055723]
[1735720936667,0.26166994,704.03,703.21,0.27055723]
[1735720936872,0.26166994,704.02,703.21,0.27055723]
[1735720937067,0.26167203,704.01,703.21,0.27055723]
[1735720937274,1.05985319,704.06,703.21,0.27055723]
[1735720937476,0.26166982,704.05,703.21,0.27055723]
[1735720937671,1.05985319,704.06,703.21,0.27055723]
[1735720938074,1.05985319,704.05,703.21,0.27055723]
[1735720939075,1.48429336,704.07,703.21,0.27055723]
[1735720942280,0.26167103,704.06,703.21,0.27055723]
[1735720943778,1.05985319,704.0,703.21,0.27055723]
[1735720944278,0.26169726,703.99,703.21,0.27055723]
[1735720944477,1.48425643,703.99,703.21,0.27055723]
[1735720944678,0.2616989,703.98,703.21,0.27055723]
[1735720944978,0.26169909,703.98,703.21,0.27055723]
[1735720945871,1.05985319,703.96,703.21,0.27055723]
[1735720946076,0.26169909,703.95,703.21,0.27055723]
[1735720947179,1.05985319,703.96,703.21,0.27055723]
[1735720947378,0.26169161,703.95,703.21,0.27055723]
[1735720947677,1.05985319,703.96,703.21,0.27055723]
[1735720949280,1.48423006,704.09,703.21,0.27055723]
[1735720957584,0.26166527,704.08,703.21,0.27055723]
[1735720958088,0.26166141,704.07,703.21,0.27055723]
[1735720958283,0.26166141,704.06,703.21,0.27055723]
[1735720958482,0.26166141,704.05,703.21,0.27055723]
[1735720958682,0.26166141,704.04,703.21,0.27055723]
[1735720958879,0.26166141,704.03,703.21,0.27055723]
[1735720959084,0.26166141,704.02,703.21,0.27055723]
[1735720959283,0.26166141,704.01,703.21,0.27055723]
[1735720959483,1.05985319,703.97,703.21,0.27055723]
[1735720960280,1.05985319,704.02,703.21,0.27055723]
[1735720960585,0.26165505,704.01,703.21,0.27055723]
[1735720960785,1.05985319,704.02,703.21,0.27055723]
[1735720961090,0.26165505,704.01,703.21,0.27055723]
[1735720962182,1.32150824,704.01,703.21,0.27055723]
[1735720962386,0.26165505,704.0,703.21,0.27055723]
[1735720963085,1.32150824,704.0,703.21,0.27055723]
[1735720963282,1.05985319,704.0,703.21,0.27055723]
[1735720963481,0.26165857,703.99,703.21,0.27055723]
[1735720964089,1.05985319,704.01,703.21,0.27055723]
[1735720964289,0.26165854,704.0,703.21,0.27055723]
[1735720966183,1.05985319,704.01,703.21,0.27055723]
[1735720966394,0.26165508,704.0,703.21,0.27055723]
[1735720967491,1.05985319,704.03,703.21,0.27055723]
[1735720967691,0.26165516,704.02,703.21,0.27055723]
[1735720969493,1.05985319,704.03,703.21,0.27055723]
[1735720969893,1.05985319,703.97,703.21,0.27055723]
[1735720970597,1.05985319,704.05,703.21,0.27055723]
[1735720970892,0.26165163,704.04,703.21,0.27055723]
[1735720971486,0.26165407,704.03,703.21,0.27055723]
[1735720971690,0.26165407,704.02,703.21,0.27055723]
[1735720971890,0.26165407,704.01,703.21,0.27055723]
[1735720972089,0.26165407,704.0,703.21,0.27055723]
[1735720972288,0.26165407,703.99,703.21,0.27055723]
[1735720972595,0.26165407,703.98,703.21,0.27055723]
[1735720972795,1.05985319,704.06,703.21,0.27055723]
[1735720972997,1.05985319,704.01,703.21,0.27055723]
[1735720973291,0.26167105,704.0,703.21,0.27055723]
[1735720974190,0.26167527,703.99,703.21,0.27055723]
[1735720974494,0.26167527,703.98,703.21,0.27055723]
[1735720974695,1.05985319,704.01,703.21,0.27055723]
[1735720974895,0.26166997,704.0,703.21,0.27055723]
[1735720975196,1.05985319,703.99,703.21,0.27055723]
[1735720975391,0.26166997,703.98,703.21,0.27055723]
[1735720976390,1.05985319,703.99,703.21,0.27055723]
[1735720977399,1.48423006,704.09,703.21,0.27055723]
[1735720977400,0.2616663,703.98,703.21,0.27055723]
[1735720977704,0.26166978,703.97,703.21,0.27055723]
[1735720977892,1.05985319,704.02,703.21,0.27055723]
[1735720978197,0.26166285,704.01,703.21,0.27055723]
[1735720978399,1.32151604,704.01,703.21,0.27055723]
[1735720978699,0.26166285,704.0,703.21,0.27055723]
[1735720979199,1.32151604,704.0,703.21,0.27055723]
[1735720979399,0.26166285,703.99,703.21,0.27055723]
[1735720980100,1.05985319,704.0,703.21,0.27055723]
[1735720980301,1.05985319,703.92,703.21,0.27055723]
[1735720981400,1.05985319,704.0,703.21,0.27055723]
[1735720982500,1.32152108,703.99,703.21,0.27055723]
[1735720982704,1.05985319,703.99,703.21,0.27055723]
[1735720983606,1.05985319,703.97,703.21,0.27055723]
[1735720984508,1.05985319,703.98,703.21,0.27055723]
[1735720986008,1.05985319,703.97,703.21,0.27055723]
[1735720987709,0.26163929,703.96,703.21,0.27055723]
[1735720988303,0.26163929,703.95,703.21,0.27055723]
[1735720988503,1.05985319,704.04,703.21,0.27055723]
[1735720988709,0.2616353,704.03,703.21,0.27055723]
[1735720989212,1.05985319,703.97,703.21,0.27055723]
[1735720989712,0.26163384,703.96,703.21,0.27055723]
[1735720990110,1.05985319,704.0,703.21,0.27055723]
[1735720990311,0.26162778,703.99,703.21,0.27055723]
[1735720990511,1.05985319,704.0,703.21,0.27055723]
[1735720991607,1.05985319,704.11,703.21,0.27055723]
[1735720992910,1.05985319,704.13,703.21,0.27055723]
[1735720993110,0.26162699,704.12,703.21,0.27055723]
[1735720993911,1.05985319,704.13,703.21,0.27055723]
[1735720994308,1.05985319,704.15,703.21,0.27055723]
[1735720994708,0.26161618,704.14,703.21,0.27055723]
[1735720995113,1.05985319,704.15,703.21,0.27055723]
[1735720995313,1.05985319,704.17,703.21,0.27055723]
[1735720996513,1.48396107,704.21,703.21,0.27055723]
[1735720996707,0.26160561,704.2,703.21,0.27055723]
[1735720997315,1.05985319,704.27,703.21,0.27055723]
[1735720997517,0.26158798,704.26,703.21,0.27055723]
[1735720997909,0.26158798,704.25,703.21,0.27055723]
[1735720998110,0.26158798,704.24,703.21,0.27055723]
[1735720998315,1.05985319,704.28,703.21,0.27055723]
[1735720998515,0.26157109,704.27,703.21,0.27055723]
[1735720998918,0.26157109,704.26,703.21,0.27055723]
[1735720999120,0.26157109,704.25,703.21,0.27055723]
[1735720999319,0.26157109,704.24,703.21,0.27055723]
[1735720999519,1.05985319,704.33,703.21,0.27055723]
[1735720999720,0.26157089,704.32,703.21,0.27055723]
[1735721000120,0.26157089,704.31,703.21,0.27055723]
[1735721000415,0.26157089,704.3,703.21,0.27055723]
[1735721000617,0.26157089,704.29,703.21,0.27055723]
[1735721000813,0.26157089,704.28,703.21,0.27055723]
[1735721001019,0.26157089,704.27,703.21,0.27055723]
[1735721001217,0.26157089,704.26,703.21,0.27055723]
[1735721001417,1.48367636,704.39,703.21,0.27055723]
[1735721001615,0.26155142,704.38,703.21,0.27055723]
[1735721003123,0.26155473,704.37,703.21,0.27055723]
[1735721003422,0.26155473,704.36,703.21,0.27055723]
[1735721003625,0.26155473,704.35,703.21,0.27055723]
[1735721003825,1.48343919,704.44,703.21,0.27055723]
[1735721003826,0.26155473,704.34,703.21,0.27055723]
[1735721004019,0.26155473,704.33,703.21,0.27055723]
[1735721004215,0.26155473,704.32,703.21,0.27055723]
[1735721004421,0.26155473,704.31,703.21,0.27055723]
[1735721004620,0.26155473,704.3,703.21,0.27055723]
[1735721004822,0.26155473,704.29,703.21,0.27055723]
[1735721005023,1.48343919,704.44,703.21,0.27055723]
[1735721005024,0.26155577,704.28,703.21,0.27055723]
[1735721005219,0.26155106,704.27,703.21,0.27055723]
[1735721005421,0.26155106,704.26,703.21,0.27055723]
[1735721005619,0.26155106,704.25,703.21,0.27055723]
[1735721005824,0.26155106,704.24,703.21,0.27055723]
[1735721006023,0.26155106,704.23,703.21,0.27055723]
[1735721006323,0.26155106,704.22,703.21,0.27055723]
[1735721006523,0.26155106,704.21,703.21,0.27055723]
[1735721006724,0.26155106,704.2,703.21,0.27055723]
[1735721007024,0.26155106,704.19,703.21,0.27055723]
[1735721007223,0.26155106,704.18,703.21,0.27055723]
[1735721007420,0.26155106,704.17,703.21,0.27055723]
[1735721007623,2.54329238,704.44,703.21,0.27055723]
[1735721008124,0.26154684,704.43,703.21,0.27055723]
[1735721009723,0.26154684,704.42,703.21,0.27055723]
[1735721009921,0.26154684,704.41,703.21,0.27055723]
[1735721010119,0.26154684,704.4,703.21,0.27055723]
[1735721010419,1.05985319,704.48,703.21,0.27055723]
[1735721010623,0.26156097,704.47,703.21,0.27055723]
[1735721011525,1.32141416,704.47,703.21,0.27055723]
[1735721011725,0.26156097,704.46,703.21,0.27055723]
[1735721012525,1.32141416,704.46,703.21,0.27055723]
[1735721012726,0.26156097,704.45,703.21,0.27055723]
[1735721013326,0.26160077,704.44,703.21,0.27055723]
[1735721013528,0.26160077,704.43,703.21,0.27055723]
[1735721013728,0.26160077,704.42,703.21,0.27055723]
[1735721013924,0.26160077,704.41,703.21,0.27055723]
[1735721014129,0.26160077,704.4,703.21,0.27055723]
[1735721014327,0.26160077,704.39,703.21,0.27055723]
[1735721014626,0.26160077,704.38,703.21,0.27055723]
[1735721014826,1.05985319,704.5,703.21,0.27055723]
[1735721014827,0.26160077,704.37,703.21,0.27055723]
[1735721015025,0.26160077,704.36,703.21,0.27055723]
[1735721015225,1.48338123,704.52,703.21,0.27055723]
[1735721015226,0.26160077,704.35,703.21,0.27055723]
[1735721015420,0.26160077,704.34,703.21,0.27055723]
[1735721015625,0.26160077,704.33,703.21,0.27055723]
[1735721015825,0.26160158,704.32,703.21,0.27055723]
[1735721016028,0.26160297,704.31,703.21,0.27055723]
[1735721016227,0.26160297,704.3,703.21,0.27055723]
[1735721016522,0.26160297,704.29,703.21,0.27055723]
[1735721016722,0.26160297,704.28,703.21,0.27055723]
[1735721016924,0.26160297,704.27,703.21,0.27055723]
[1735721017130,0.26160297,704.26,703.21,0.27055723]
[1735721017327,0.26160297,704.25,703.21,0.27055723]
[1735721017526,0.26160297,704.24,703.21,0.27055723]
[1735721017721,0.26160297,704.23,703.21,0.27055723]
[1735721017922,1.05985319,704.45,703.21,0.27055723]
[1735721018223,0.2616007,704.44,703.21,0.27055723]
[1735721018425,0.26159936,704.43,703.21,0.27055723]
[1735721018631,0.26159936,704.44,703.21,0.27055723]
[1735721018924,1.32145255,704.43,703.21,0.27055723]
[1735721019128,0.26159952,704.42,703.21,0.27055723]
[1735721019929,1.48371326,704.41,703.21,0.27055723]
[1735721020132,0.26159952,704.4,703.21,0.27055723]
[1735721021129,1.48371326,704.41,703.21,0.27055723]
[1735721021330,1.32145111,704.4,703.21,0.27055723]
[1735721021531,0.26159792,704.39,703.21,0.27055723]
[1735721022332,1.05985319,704.37,703.21,0.27055723]
[1735721022530,0.26159792,704.36,703.21,0.27055723]
[1735721023432,1.32145111,704.36,703.21,0.27055723]
[1735721023631,0.26159792,704.35,703.21,0.27055723]
[1735721023932,0.26160058,704.34,703.21,0.27055723]
[1735721024124,0.26160058,704.33,703.21,0.27055723]
[1735721024331,0.26160058,704.32,703.21,0.27055723]
[1735721025732,1.05985319,704.24,703.21,0.27055723]
[1735721025931,0.26160058,704.23,703.21,0.27055723]
[1735721026427,1.05985319,704.24,703.21,0.27055723]
[1735721026732,0.26160403,704.23,703.21,0.27055723]
[1735721027031,0.26159458,704.22,703.21,0.27055723]
[1735721027227,0.26159458,704.21,703.21,0.27055723]
[1735721027428,0.26159458,704.2,703.21,0.27055723]
[1735721027629,0.26159458,704.19,703.21,0.27055723]
[1735721027836,0.26159458,704.18,703.21,0.27055723]
[1735721028031,0.26159458,704.17,703.21,0.27055723]
[1735721028228,0.26159458,704.16,703.21,0.27055723]
[1735721028432,0.26159458,704.15,703.21,0.27055723]
[1735721028632,0.26159458,704.14,703.21,0.27055723]
[1735721028834,0.26159458,704.13,703.21,0.27055723]
[1735721029134,0.26159458,704.12,703.21,0.27055723]
[1735721029328,0.26160826,704.11,703.21,0.27055723]
[1735721029527,0.26160826,704.1,703.21,0.27055723]
[1735721029730,0.26160826,704.09,703.21,0.27055723]
[1735721029929,0.26160826,704.08,703.21,0.27055723]
[1735721030126,0.26160826,704.07,703.21,0.27055723]
[1735721030332,0.26160826,704.06,703.21,0.27055723]
[1735721030634,1.05985319,704.16,703.21,0.27055723]
[1735721030832,0.26159287,704.15,703.21,0.27055723]
[1735721031835,1.05985319,704.2,703.21,0.27055723]
[1735721032032,0.26157333,704.19,703.21,0.27055723]
[1735721032731,0.26157333,704.19,703.24,1.0621168]
[1735721033028,1.05985319,704.25,703.24,1.0621168]
[1735721033029,0.26157333,704.18,703.26,0.28438984]
[1735721033231,0.26157333,704.17,703.26,0.28438984]
[1735721033534,1.05985319,704.25,703.26,0.28438984]
[1735721033730,0.26154997,704.24,703.26,0.28438984]
[1735721033934,0.26154997,704.24,703.28,1.0621168]
[1735721034233,0.26154997,704.23,703.29,0.28437771]
[1735721034432,0.26154997,704.22,703.29,0.28437771]
[1735721034634,0.26155368,704.25,703.29,0.28437771]
[1735721034827,0.26155368,704.24,703.29,0.28437771]
[1735721035031,0.26155368,704.23,703.3,1.0621168]
[1735721035233,0.26154965,704.22,703.31,0.28436962]
[1735721035535,0.26154965,704.21,703.31,0.28436962]
[1735721035730,0.26154965,704.2,703.31,0.28436962]
[1735721035932,0.26154965,704.19,703.31,1.34648642]
[1735721036131,0.26154965,704.18,703.31,1.34648642]
[1735721036332,0.26154965,704.17,703.31,1.34648642]
[1735721036630,0.26155412,704.16,703.31,1.34648642]
[1735721036835,0.26155412,704.29,703.31,1.34648642]
[1735721037036,0.26154792,704.28,703.31,0.28436962]
[1735721037237,1.05985319,704.29,703.31,0.28436962]
[1735721037534,0.26154796,704.28,703.31,0.28436962]
[1735721038139,1.05985319,704.29,703.31,0.28436962]
[1735721038434,0.26155108,704.28,703.31,0.28436962]
[1735721038633,0.26155108,704.27,703.31,0.28436962]
[1735721038835,0.26155108,704.26,703.31,0.28436962]
[1735721039034,0.26155108,704.3,703.31,0.28436962]
[1735721039229,0.26155108,704.29,703.31,0.28436962]
[1735721039433,1.4833865,704.5,703.32,1.0621168]
[1735721039434,0.26155108,704.28,703.32,1.0621168]
[1735721039635,0.26155108,704.27,703.33,0.28436153]
[1735721039835,1.05985319,704.33,703.33,0.28436153]
[1735721040031,0.26154494,704.32,703.33,0.28436153]
[1735721040539,1.32139813,704.32,703.33,0.28436153]
[1735721040832,0.26154494,704.31,703.33,0.28436153]
[1735721041831,0.26155465,704.3,703.33,0.28436153]
[1735721042032,0.26155465,704.29,703.33,0.28436153]
[1735721042235,0.26155465,704.32,703.33,0.28436153]
[1735721042436,0.26155742,704.31,703.33,0.28436153]
[1735721042634,0.26155742,704.3,703.33,0.28436153]
[1735721042842,0.26155742,704.29,703.33,0.28436153]
[1735721044539,1.05985319,704.31,703.33,0.28436153]
[1735721044540,0.26155313,704.28,703.33,0.28436153]
[1735721044840,0.26155313,704.27,703.33,0.28436153]
[1735721045038,0.26155313,704.26,703.33,0.28436153]
[1735721045334,0.26155313,704.25,703.33,0.28436153]
[1735721045534,0.26155313,704.24,703.33,0.28436153]
[1735721045739,0.26155313,704.23,703.33,0.28436153]
[1735721045934,0.26155313,704.22,703.33,0.28436153]
[1735721046136,0.26155313,704.21,703.33,0.28436153]
[1735721046340,0.26155313,704.2,703.33,0.28436153]
[1735721046540,0.26155313,704.19,703.33,0.28436153]
[1735721046839,0.26155313,704.18,703.33,0.28436153]
[1735721047138,1.05985319,704.3,703.33,0.28436153]
[1735721047338,0.26154854,704.29,703.33,0.28436153]
[1735721048039,0.26154854,704.28,703.33,0.28436153]
[1735721048233,0.26154854,704.27,703.33,0.28436153]
[1735721048433,0.26154854,704.26,703.33,0.28436153]
[1735721048638,0.26154854,704.25,703.33,0.28436153]
[1735721048839,0.26154854,704.24,703.33,0.28436153]
[1735721049038,0.26154854,704.23,703.33,0.28436153]
[1735721049240,0.26154854,704.22,703.33,0.28436153]
[1735721049439,0.26154854,704.21,703.33,0.28436153]
[1735721049640,0.26154854,704.2,703.33,0.28436153]
[1735721049841,0.26154976,704.19,703.33,0.28436153]
[1735721050140,1.05985319,704.32,703.33,0.28436153]
[1735721050341,0.26155147,704.31,703.33,0.28436153]
[1735721050540,0.26155111,704.3,703.33,0.28436153]
[1735721050741,0.26155111,704.29,703.33,0.28436153]
[1735721050937,0.26155111,704.28,703.33,0.28436153]
[1735721051140,0.26155111,704.27,703.33,0.28436153]
[1735721051338,0.26155111,704.26,703.33,0.28436153]
[1735721051539,0.26155111,704.25,703.33,0.28436153]
[1735721051743,1.05985319,704.3,703.33,0.28436153]
[1735721051938,0.26155869,704.29,703.33,0.28436153]
[1735721052443,1.05985319,704.3,703.33,0.28436153]
[1735721052644,0.26155863,704.29,703.33,0.28436153]
[1735721053144,0.26155863,704.28,703.33,0.28436153]
[1735721053343,0.26155863,704.27,703.33,0.28436153]
[1735721053546,0.26155863,704.26,703.33,0.28436153]
[1735721053737,0.26155863,704.25,703.33,0.28436153]
[1735721053941,0.26155863,704.24,703.33,0.28436153]
[1735721054149,0.26155863,704.23,703.33,0.28436153]
[1735721054342,0.26155863,704.22,703.33,0.28436153]
[1735721054539,0.26155863,704.21,703.33,0.28436153]
[1735721054739,0.26155863,704.2,703.33,0.28436153]
[1735721054944,0.26155863,704.19,703.33,0.28436153]
[1735721055143,0.26160492,704.18,703.33,0.28436153]
[1735721055446,0.26160492,704.17,703.33,0.28436153]
[1735721055647,0.26160492,704.16,703.33,0.28436153]
[1735721055844,1.05985319,704.23,703.33,0.28436153]
[1735721055845,0.26160492,704.15,703.33,0.28436153]
[1735721056049,0.26160492,704.14,703.33,0.28436153]
[1735721056248,0.26160492,704.13,703.33,0.28436153]
[1735721056449,0.26160492,704.12,703.33,0.28436153]
[1735721056748,0.26161258,704.11,703.33,0.28436153]
[1735721056943,1.05985319,704.24,703.33,0.28436153]
[1735721057143,0.26161195,704.23,703.33,0.28436153]
[1735721057750,0.26163444,704.22,703.33,0.28436153]
[1735721057944,0.26163444,704.21,703.33,0.28436153]
[1735721058143,0.26163444,704.2,703.33,0.28436153]
[1735721058349,0.26163444,704.22,703.33,0.28436153]
[1735721058542,0.26163444,704.21,703.33,0.28436153]
[1735721058749,0.26163444,704.2,703.33,0.28436153]
[1735721059049,1.48356567,704.34,703.33,0.28436153]
[1735721059050,1.05985319,704.18,703.33,0.28436153]
[1735721059248,0.26163444,704.17,703.33,0.28436153]
[1735721060448,0.26163175,704.16,703.33,0.28436153]
[1735721060646,0.26163175,704.15,703.33,0.28436153]
[1735721060847,1.05985319,704.21,703.33,0.28436153]
[1735721060848,0.26163175,704.14,703.33,0.28436153]
[1735721061049,0.26163175,704.13,703.33,0.28436153]
[1735721061244,0.26163175,704.12,703.33,0.28436153]
[1735721061444,0.26163175,704.11,703.33,0.28436153]
[1735721061649,0.26163175,704.1,703.33,0.28436153]
[1735721061952,0.26163175,704.09,703.33,0.28436153]
[1735721062143,0.26163175,704.08,703.33,0.28436153]
[1735721062344,1.48356567,704.34,703.33,0.28436153]
[1735721062345,0.26163175,704.07,703.33,0.28436153]
[1735721062549,1.05985319,704.22,703.33,0.28436153]
[1735721062750,0.26162819,704.21,703.33,0.28436153]
[1735721063047,0.26161959,704.2,703.33,0.28436153]
[1735721063252,0.26161959,704.19,703.33,0.28436153]
[1735721063550,0.26161959,704.18,703.33,0.28436153]
[1735721063750,0.26161959,704.17,703.33,0.28436153]
[1735721064051,0.26161959,704.16,703.33,0.28436153]
[1735721064251,0.26161959,704.15,703.33,0.28436153]
[1735721064446,0.26161959,704.14,703.33,0.28436153]
[1735721064750,0.26161959,704.13,703.33,0.28436153]
[1735721065051,0.26162082,704.12,703.33,0.28436153]
[1735721065251,0.26162082,704.11,703.33,0.28436153]
[1735721065446,0.26162082,704.1,703.33,0.28436153]
[1735721065647,1.48386615,704.2,703.33,0.28436153]
[1735721065846,0.26162,704.19,703.33,0.28436153]
[1735721068448,0.26162311,704.18,703.33,0.28436153]
[1735721068755,0.26162311,704.17,703.33,0.28436153]
[1735721068954,0.26162311,704.16,703.33,0.28436153]
[1735721069150,0.26162311,704.15,703.33,0.28436153]
[1735721069356,0.26162311,704.14,703.33,0.28436153]
[1735721069556,0.26162311,704.13,703.33,0.28436153]
[1735721069757,0.26162311,704.12,703.33,0.28436153]
[1735721069951,0.26162311,704.11,703.33,0.28436153]
[1735721070151,0.26162311,704.1,703.33,0.28436153]
[1735721070357,0.26162311,704.09,703.33,0.28436153]
[1735721070555,0.26162311,704.08,703.33,0.28436153]
[1735721070758,0.26162311,704.07,703.33,0.28436153]
[1735721070957,0.26162311,704.06,703.33,0.28436153]
[1735721071259,0.26163225,704.05,703.33,0.28436153]
[1735721071456,0.26163225,704.04,703.33,0.28436153]
[1735721071757,0.26163225,704.03,703.33,0.28436153]
[1735721071953,0.26163225,704.02,703.33,0.28436153]
[1735721072152,1.48386615,704.2,703.33,0.28436153]
[1735721072356,0.26163496,704.19,703.33,0.28436153]
[1735721073756,1.48386615,704.2,703.33,0.28436153]
[1735721073757,0.26162617,704.18,703.33,0.28436153]
[1735721073954,0.26162617,704.19,703.33,0.28436153]
[1735721074158,0.26162617,704.18,703.33,0.28436153]
[1735721074353,1.48386615,704.2,703.33,0.28436153]
[1735721074560,0.26162797,704.19,703.33,0.28436153]
[1735721076460,0.26162698,704.18,703.33,0.28436153]
[1735721076659,0.26162698,704.17,703.33,0.28436153]
[1735721076861,1.48386615,704.2,703.33,0.28436153]
[1735721077062,1.05985319,704.23,703.33,0.28436153]
[1735721077962,1.48377125,704.29,703.33,0.28436153]
[1735721084961,0.26161843,704.28,703.33,0.28436153]
[1735721085964,1.05985319,704.26,703.33,0.28436153]
[1735721086164,0.26161843,704.25,703.33,0.28436153]
[1735721087163,1.32147162,704.25,703.33,0.28436153]
[1735721087369,0.26161843,704.24,703.33,0.28436153]
[1735721088764,1.05985319,704.09,703.33,0.28436153]
[1735721088968,0.26161843,704.08,703.33,0.28436153]
[1735721089768,0.26162422,704.07,703.33,0.28436153]
[1735721090070,1.48377125,704.29,703.33,0.28436153]
[1735721090071,1.05985319,704.03,703.33,0.28436153]
[1735721090262,0.26162422,704.02,703.33,0.28436153]
[1735721090466,0.26162568,704.01,703.33,0.28436153]
[1735721090667,1.05985319,704.03,703.33,0.28436153]
[1735721091063,0.26163774,704.02,703.33,0.28436153]
[1735721091368,1.05985319,704.04,703.33,0.28436153]
[1735721091567,0.26163622,704.03,703.33,0.28436153]
[1735721094774,1.32148941,704.03,703.33,0.28436153]
[1735721095072,1.05985319,704.03,703.33,0.28436153]
[1735721095271,0.26163989,704.02,703.33,0.28436153]
[1735721096177,1.32149308,704.02,703.33,0.28436153]
[1735721096375,0.26163989,704.01,703.33,0.28436153]
[1735721097278,1.05985319,703.98,703.33,0.28436153]
[1735721097478,0.26163989,703.97,703.33,0.28436153]
[1735721097680,0.26165372,703.96,703.33,0.28436153]
[1735721097874,0.26165372,703.95,703.33,0.28436153]
[1735721098073,1.05985319,703.98,703.33,0.28436153]
[1735721098276,0.26165,703.97,703.33,0.28436153]
[1735721098475,0.26165,703.96,703.33,0.28436153]
[1735721098678,1.05985319,703.99,703.33,0.28436153]
[1735721098879,0.26164658,703.98,703.33,0.28436153]
[1735721099575,0.26164658,703.97,703.33,0.28436153]
[1735721099780,0.26164658,703.96,703.33,0.28436153]
[1735721099980,0.26164291,703.95,703.33,0.28436153]
[1735721100181,1.05985319,704.01,703.33,0.28436153]
[1735721100381,0.26164266,704.0,703.33,0.28436153]
[1735721101680,1.32149585,704.0,703.33,0.28436153]